Cogmind - Beta 13 @@@ ROGUE MODE // 2024.04.03 @ 12:36:11 Player: robb Result: Destroyed by G-34 Mercenary with Small Laser Performance ------------- Evolutions (1) 500 Regions Visited (2) 400 Robots Destroyed (23) 115 Value Destroyed (487) 487 Prototype IDs (1) 20 Alien Tech Used (0) 0 Bonus (0) 0 TOTAL SCORE: 1522 Bonus ------- None Cogmind --------- Core Integrity 0/400 Matter 300/300 Energy 275/275 System Corruption 0% Temperature Cool (6) Movement Flying (520) Ox6 Location -9/Materials Parts ------- > --- POWER (1) -------- Deuterium Engine > --- PROPULSION (4) --- Flight Unit > --- UTILITY (2) ------ Heat Sink Medium Storage Unit > --- WEAPON (2) ------- Pulse Rifle Pulse Rifle > --- INVENTORY (10) --- Deuterium Engine Flight Unit Terrain Scanner Improved Targeting Computer Beam Rifle Pulse Rifle Pulse Rifle Peak State ------------ > --- POWER ------------ Deuterium Engine > --- PROPULSION ------- Flight Unit Flight Unit Flight Unit Flight Unit > --- UTILITY ---------- Medium Storage Unit Hardened Light Armor Plating > --- WEAPON ----------- Pulse Rifle Pulse Rifle > --- INVENTORY -------- Deuterium Engine Flight Unit Heat Sink Medium Matter Pod Terrain Scanner Pulse Rifle [Rating: 17] Favorites ----------- Power Deuterium Engine Engine Deuterium Engine Propulsion Aluminum Leg Leg Aluminum Leg Flight Unit Flight Unit Utility Medium Storage Unit Device Heat Sink Storage Medium Storage Unit Protection Hardened Light Armor Plating Weapon Pulse Rifle Energy Gun Pulse Rifle Ballistic Gun Light Assault Rifle Launcher Grenade Launcher Build | -11 -10 -9 ------- Run | Yrd Mat Mat Slots Evolved 2 | . . 2 Power . | . . . Propulsion 2 | . . 2 Utility . | . . . Weapon . | . . . Parts Attached 37 | 7 7 23 Power 7 | 1 1 5 Engine 7 | 1 1 5 Core . | . . . Reactor . | . . . Propulsion 7 | 2 . 5 Treads . | . . . Leg 3 | 2 . 1 Wheel . | . . . Hover . | . . . Flight 4 | . . 4 Utility 10 | 2 4 4 Device 5 | 1 3 1 Storage 4 | 1 1 2 Processor . | . . . Hackware . | . . . Protection 1 | . . 1 Artifact . | . . . Weapon 13 | 2 2 9 Energy Gun 9 | 1 1 7 Energy Cannon . | . . . Ballistic Gun 3 | 1 1 1 Ballistic Cannon . | . . . Launcher 1 | . . 1 Special Weapon . | . . . Impact Weapon . | . . . Slashing Weapon . | . . . Piercing Weapon . | . . . Special Melee Weapon . | . . . Unidentified Prototypes 1 | . . 1 Parts Lost 12 | . . 12 Power 2 | . . 2 Propulsion 6 | . . 6 Utility 1 | . . 1 Weapon 3 | . . 3 Highest Loss Streak 9 | . . 9 To Critical Strikes . | . . . Average Slot Usage (%) 79 | . 100 74 Engine 11 | . 14 10 Leg 13 | . 28 10 Flight 7 | . . 9 Device 10 | . 14 9 Storage 11 | . 14 10 Protection 1 | . . 2 Energy Gun 16 | . 14 17 Ballistic Gun 6 | . 14 4 Naked Turns . | . . . Heaviest Build 30 | 9 14 30 Greatest Support 30 | 20 20 30 Greatest Overweight (x) 6 | . . 6 Average Overweight (x) . | . . 1 Largest Inventory Capacity 10 | 5 8 10 Average Capacity 8 | 5 7 9 Most Carried 9 | 3 8 9 Average Carried 5 | . 4 6 Final Capacity 10 | 5 8 10 Final Carried 8 | 2 8 7 Class Distribution -------------------- 94% | Mutant 5% | Scavenger-Mutant Dominant Class ---------------- Mutant | -10/Materials Mutant | -9/Materials Resources | -11 -10 -9 ----------- Run | Yrd Mat Mat Matter Collected 708 | 340 46 322 Remotely . | . . . Salvage Created 654 | 49 46 559 Parts 40 | 5 1 34 Haulers Intercepted . | . . . Recyclers Shooed . | . . . Parts Field Recycled . | . . . Retrieved Matter . | . . . Parts Self-Destructed . | . . . Prevented . | . . . Kills | -11 -10 -9 ------- Run | Yrd Mat Mat Combat Hostiles Destroyed 21 | 1 1 19 Guns 18 | 1 1 16 AOE 2 | . . 2 Classes Destroyed 5 | 2 . 3 Worker 1 | 1 . . Recycler 1 | . . 1 Swarmer 12 | . . 12 Grunt 5 | 1 1 3 Sentry 4 | . . 4 Best Kill Streak 6 | 1 1 6 Combat Bots Only 6 | 1 1 6 Max Kills in Single Turn 1 | 1 1 1 Gunslinging . | . . . Exploded 1 | . . 1 Melee . | . . . Uniques/NPCs Destroyed . | . . . Combat | -11 -10 -9 -------- Run | Yrd Mat Mat Hostile Shots Fired 230 | 9 6 215 Missed 61 | 1 2 58 Damage Taken 1743 | 92 44 1607 Core 443 | 34 . 409 Absorbed by Shields . | . . . Core Remaining (%) 86 | 86 86 . Volleys Fired 71 | 5 6 60 Largest 2 | 2 2 2 Hottest 126 | 70 70 126 Shots Fired 137 | 10 12 115 Gun 134 | 10 12 112 Cannon . | . . . Launcher 3 | . . 3 Special . | . . . Kinetic 52 | 5 6 41 Thermal 82 | 5 6 71 Explosive 3 | . . 3 Electromagnetic . | . . . Robot Hit Streak 12 | 4 6 12 Robot Miss Streak 3 | 1 2 3 Penetration Max . | . . . Secondary Targets 2 | . . 2 Max Gunslinging Chain 1 | . . 1 Shots Hit Robots 86 | 7 9 70 Core Hits 35 | 3 2 30 Critical Kills . | . . . Critical Parts Destroyed . | . . . Critical Strikes 5 | . . 5 Burn 5 | . . 5 Melee Attacks . | . . . Impact . | . . . Slashing . | . . . Piercing . | . . . Sneak Attacks . | . . . Combat Hostiles . | . . . Follow-up Attacks . | . . . Damage Inflicted 1161 | 72 90 999 Guns 986 | 72 90 824 Cannons . | . . . Explosions 175 | . . 175 Melee . | . . . Ramming . | . . . Kinetic 225 | 22 28 175 Thermal 761 | 50 62 649 Explosive 175 | . . 175 Electromagnetic . | . . . Impact . | . . . Slashing . | . . . Piercing . | . . . Highest Corruption . | . . . Average Corruption . | . . . Corruption Purged . | . . . Corruption Blocked . | . . . Overload Shots . | . . . Overflow Damage 33 | . . 33 Projectiles . | . . . Explosions 33 | . . 33 Melee . | . . . Knockbacks . | . . . Impact . | . . . Kinetic . | . . . Secondary . | . . . Self-Inflicted Damage 101 | . . 101 Shots 3 | . . 3 Rammed . | . . . Targets Rammed 1 | . 1 . Kicked 1 | . 1 . Crushed . | . . . Highest Temperature 509 | 56 114 509 Average Temperature 126 | 23 52 140 Received Heat Transfer 330 | 48 24 258 Effects 6 | . . 6 Shutdowns 1 | . . 1 Energy Bleed 1 | . . 1 Matter Decay 1 | . . 1 Damage (minor) 3 | . . 3 Siege Activations . | . . . Robots Corrupted . | . . . Combat Hostiles . | . . . Parts Fried . | . . . Impact Corruptions . | . . . Robots Melted 1 | . . 1 Combat Hostiles 1 | . . 1 Parts Melted 4 | . . 4 Heat Transferred 2308 | 148 185 1975 Parts Sabotaged . | . . . Parts Stolen . | . . . Parts Stripped . | . . . Power Chain Reactions . | . . . Alert | -11 -10 -9 ------- Run | Yrd Mat Mat Peak Influence 386 | 25 76 386 Initial 31 | . 16 31 Average 170 | 11 29 231 Maximum Alert Level 1 | . . 1 Low Security (%) 44 | 100 100 21 Level 1 55 | . . 78 Level 2 . | . . . Level 3 . | . . . Level 4 . | . . . Level 5 . | . . . High Security . | . . . Max Security . | . . . Squads Dispatched 2 | . 1 1 Investigation . | . . . Extermination . | . . . Reinforcement 2 | . 1 1 Assault . | . . . Garrison . | . . . Intercept . | . . . Searches Triggered . | . . . Construction Impeded . | . . . Haulers Reinforced . | . . . Active Scanning Responses . | . . . Cargo Convoy Interrupts . | . . . Stealth | -11 -10 -9 --------- Run | Yrd Mat Mat Distress Signals 2 | . . 2 Communications Jammed . | . . . Distress Signals . | . . . Times Spotted 42 | 1 3 38 Peak Tracking Total 14 | 1 2 14 Tactical Retreats 3 | . 1 2 Traps | -11 -10 -9 ------- Run | Yrd Mat Mat Traps Triggered . | . . . Indirectly . | . . . Trap Hack Attempts . | . . . Triggered . | . . . Disarmed . | . . . Reprogrammed . | . . . Reused . | . . . Traps Extracted . | . . . Installed . | . . . Triggered . | . . . Machines | -11 -10 -9 ---------- Run | Yrd Mat Mat Machines Disabled 1 | . . 1 Max in Single Turn 1 | . . 1 Machines Repaired . | . . . Machines Dismantled . | . . . Machines Sabotaged . | . . . Overloaded Fab Kills . | . . . Hacking | -11 -10 -9 --------- Run | Yrd Mat Mat Machines Accessed . | . . . Terminals . | . . . Fabricators . | . . . Repair Stations . | . . . Recycling Units . | . . . Scanalyzers . | . . . Garrison Access . | . . . Total Hacks . | . . . Successful . | . . . Failed . | . . . Catastrophic . | . . . Database Lockouts . | . . . Manual . | . . . Terminals . | . . . Fabricators . | . . . Repair Stations . | . . . Recycling Units . | . . . Scanalyzers . | . . . Garrison Access . | . . . Terminal Hacks . | . . . Fabricator Hacks . | . . . Repair Station Hacks . | . . . Recycling Unit Hacks . | . . . Scanalyzer . | . . . Garrison Access Hacks . | . . . Unauthorized Hacks . | . . . Terminals . | . . . Fabricators . | . . . Repair Stations . | . . . Recycling Units . | . . . Scanalyzers . | . . . Garrison Access . | . . . Data Cores Recovered . | . . . Used . | . . . Hacking Detections . | . . . Full Trace Events . | . . . Feedback Events . | . . . Feedback Blocked . | . . . Robot Schematics Acquired . | . . . Robots Built . | . . . Authchips . | . . . Time . | . . . Total Robot Build Rating . | . . . Part Schematics Acquired . | . . . Parts Built . | . . . Authchips . | . . . Time . | . . . Total Part Build Rating . | . . . Parts Repaired . | . . . Time . | . . . Parts Recycled . | . . . Recycled Matter . | . . . Retrieved Matter . | . . . Retrieved Components . | . . . Parts Scanalyzed . | . . . Part Schematics Acquired . | . . . Parts Damaged . | . . . Bothacking | -11 -10 -9 ------------ Run | Yrd Mat Mat Used RIF Installer . | . . . Robots Hacked . | . . . Non-combat . | . . . Combat . | . . . Robot Hacks Applied . | . . . Relay Couplers Released . | . . . Fabnet Peak Effective % . | . . . Robots Rewired . | . . . Allies Hacked . | . . . Hacks Repelled . | . . . Allies | -11 -10 -9 -------- Run | Yrd Mat Mat Total Allies . | . . . Largest Group . | . . . Highest-Rated Group . | . . . Highest-Rated Ally . | . . . Total Orders . | . . . Ally Attacks . | . . . Total Damage . | . . . Kills . | . . . Allies Corrupted . | . . . Allies Melted . | . . . Intel | -11 -10 -9 ------- Run | Yrd Mat Mat Robot Analysis Total . | . . . Derelict Logs Recovered . | . . . Drone Launches . | . . . Drone Recoveries . | . . . Exploration | -11 -10 -9 ------------- Run | Yrd Mat Mat Turns Passed 1652 | 168 315 1169 Spaces Moved 712 | 118 210 384 Core 28 | 19 . 9 Treads . | . . . Legs 528 | 99 210 219 Wheels . | . . . Hover . | . . . Flight 156 | . . 156 Fastest Speed 50 | 50 120 111 Average Speed 173 | 108 120 222 Slowest Speed 520 | 120 120 520 Overloaded Moves . | . . . Propulsion Burnouts . | . . . Robots Hopped . | . . . Cave-ins Triggered . | . . . Exploration Rate (%) 28 | 8 47 29 Regions Visited 2 Branch Regions . Pre-discovered Areas . | . . . Known Exits Taken . | . . . Unknown Exits Taken 2 | 1 1 . Scrap Searched . | . . . Spaces Dug . | . . . Terrain Destroyed 25 | . . 25 Melee . | . . . Projectile . | . . . AOE 25 | . . 25 Terrain Rammed . | . . . Walls Destroyed . | . . . Machines Disabled . | . . . Actions | -11 -10 -9 --------- Run | Yrd Mat Mat Total 1002 | 148 262 592 Wait 128 | 10 27 91 Move 710 | 117 209 384 Hop . | . . . Pick Up 39 | 9 8 22 Fast Attach . | . . . Attach 24 | 7 4 13 Detach 2 | . 2 . Swap 13 | . 3 10 Drop 14 | . 2 12 Fire 71 | 5 6 60 Melee . | . . . Ram . | . . . Kick 1 | . 1 . Crush . | . . . Escape Stasis . | . . . Rewire . | . . . Trap . | . . . Miscellaneous . | . . . Route ------- -11/Scrapyard -10/Materials (discovered 3 exits: [*Mat] / [*Min x2]) -9/Materials History --------- Turn | Location | Event 2 | -11/Scrapyard | Met Revision 17 65 | -11/Scrapyard | Discovered new exit (range 8) 169 | -11/Scrapyard | Entered Materials 326 | -10/Materials | Build established: Mutant 327 | -10/Materials | Discovered new exit (range 10) 423 | -10/Materials | Discovered new exit (range 3) 424 | -10/Materials | Discovered new exit (range 7) 484 | -10/Materials | Entered another Materials area 484 | -9/Materials | Evolved 2 slots: Propulsion x2 895 | -9/Materials | Core integrity fell below 50% 945 | -9/Materials | Lost 9 parts (2p3n1u3w) 996 | -9/Materials | Core integrity fell below 20% 1160 | -9/Materials | Lost 3 parts (3n) 1653 | -9/Materials | Destroyed by G-34 Mercenary with Small Laser Last Messages --------------- G-34 Mercenary overheating. G-34 Mercenary heat damages Sml. Laser. G-34 Mercenary overheating. G-34 Mercenary heat damages core (-3). G-34 Mercenary overheating. Overheating: Deuterium Engine damaged (-39). G-34 Mercenary overheating. G-34 Mercenary heat short circuits Aluminum Leg. Heat Sink melted. G-34 Mercenary destroyed. Overheating: Pulse Rifle damaged (-26). Acquired 29 matter. G-34 Mercenary destroyed. Acquired 43 matter. Dropped Hrd. Light Armor Plating. Acquired Pulse Rifle. Acquired 42 matter. Acquired Beam Rifle. K-01 Serf collects debris. Acquired Imp. Targeting Computer. Map ----- +----------------------------------------------------+ | ??????????????????????????????????????? | | ????????????????????##???????????###### | | ??????????????###### #???????????# # # | | ??########????# #?????######## | | ??# #????# """ #?????#[* [[##### | | ??# """#????# """ #?????#[* [[# +* | | ??# """#????# "" ####### * # # | | ??# """#????# ## ! # # %# | | ??# #????# """ ["! ^ [#" | | ??# ###### """ ## ! += | | ???####+## # """ ## T ##+###" | | ????# # ##^ = # ##" | | ????# # """ ## * # ##" | | ????###### # """ ## ^ # ## | | ???######## ##%""" ## # ### | | ???# # ##= ## """ # #?? | | ???# T + ##/####### """ # #?? | | ???# # """ # #?? | | ???# # #####?? | | ???# ###### #?????? | | ???# #????# ######+###### #?????? | | ???############# #???? ?????? #?????? | | ????# ## #???? ?????? #?????? | | ????# ## ##???" ???????#?????? | | ????# # #???" ?????????????? | | ??????""" """ @ #???" ?????????????? | | ????# """ """ # a #???? ?????????????? | | ????# """ """ # #???? ?????????????? | | ????# ##g###??????????????????? | | ????# ! ## #????????????????????? | | ????############ #????????????????????? | | ???????????????# #????????????????????? | | ??????????????? #????????????????????? | | ??????????????? #????????????????????? | | ??????????????? #????????????????????? | | ???????????????# #????????????????????? | | ???????????????# #????????????????????? | | ???????????????? ?????????????????????? | | ???????????????? ?????????????????????? | | ???????????????? ?????????????????????? | | ???????????????? ?????????????????????? | | ???????????????? ?????????????????????? | | ???????????????? ?????????????????????? | | ???????????????? ?????????????????????? | | ??????????????????????????????????????? | | ??????????????????????????????????????? | | ??????????????????????????????????????? | | ??????????????????????????????????????? | | ??????????????????????????????????????? | | ??????????????????????????????????????? | +----------------------------------------------------+ Best States ------------- Heat Dissipation 38 Energy Generation 14 Energy Capacity 275 Matter Stores 400 Matter Capacity 400 Sight Range 16 Terrain Scan Range 14 Terrain Scan Density 10 Armor Coverage 150 Evasion (%) 55 Item Schematics ----------------- None Robot Schematics ------------------ None Fabricated ------------ Nothing Alien Tech Used ----------------- None Achievements -------------- It's Just You Let's See Who's Tougher Challenges ------------ None Game ------ Seed GhostMobileBlade Manual? 0 Play Time 00:24:50 Cumulative 1.7 hours Start 2024.04.02 @ 23:45:52 End 2024.04.03 @ 12:36:11 Sessions 4 Manual Loads 0 Difficulty Rogue Special Mode None Game No. 3 Rogue 3 Adventurer 0 Explorer 0 Win Type - Total 0 Types 0/0/0/0/0/0/0/0/0 Lore% 0 Gallery% 5 Achievement% 5 Wizard Run 0 Options --------- Layout 0 ASCII 0 Keyboard 0 Movement Mouse Keybinds 0 Fullscreen 1 Font 24/Smallcaps Map View 76x50 Zoom Use 0% Tactical HUD 0 Map Filters NONE Filters NONE Steam 1 RUN: c8fad07d-8a7d-4055-abcc-fedb9561794d